[Event "56th Rubinstein Memorial A 2020"]
[Site "Polanica Zdroj"]
[Date "2020.08.17"]
[Round "3.12"]
[White "Rogacewicz, Mikolaj"]
[Black "Marszalek, Maciej"]
[Result "0-1"]
[ECO "A64"]
[WhiteElo "1970"]
[BlackElo "2315"]
[Annotator "ChessBase"]
[PlyCount "44"]
[EventDate "2020.08.15"]
[EventType "swiss"]
[EventCountry "POL"]
[SourceTitle "playchess.com"]
[Source "ChessBase"]
[SourceQuality "1"]
[TimeControl "40/5400+30:1800+30"]

1. d4 Nf6 2. c4 e6 3. g3 c5 4. d5 exd5 5. cxd5 d6 6. Nc3 g6 7. Bg2 Bg7 8. Nf3 O-O 9. O-O Re8 10. Nd2 a6 11. a4 Nbd7 12. h3 Rb8 13. Nc4 Ne5 14. Na3 Nh5 15. e4 Bd7 16. a5 b5 17. g4 b4 18. gxh5 bxa3 19. b3 Qh4 20. Rxa3 Bxh3 21. f3 Ng4 22. fxg4 Bd4+ 0-1

[Event "56th Rubinstein Memorial A 2020"]
[Site "Polanica Zdroj"]
[Date "2020.08.17"]
[Round "3.17"]
[White "Kazmierowski, Tymon"]
[Black "Balinski, Damian"]
[Result "0-1"]
[ECO "B09"]
[WhiteElo "1844"]
[BlackElo "2136"]
[Annotator "RC"]
[PlyCount "54"]
[EventDate "2020.08.15"]
[EventType "swiss"]
[EventCountry "POL"]
[SourceTitle "playchess.com"]
[Source "ChessBase"]
[SourceQuality "1"]
[TimeControl "40/5400+30:1800+30"]

1. e4 {[%emt 0:00:00]} d6 {[%emt 0:00:00]} 2. d4 {[%emt 0:00:00]} Nf6 {[%emt 0:00:00]} 3. Nc3 {[%emt 0:00:00]} g6 {[%emt 0:00:00]} 4. f4 {[%emt 0:00:00]} Bg7 {[%emt 0:00:00]} 5. Nf3 {[%emt 0:00:00]} O-O {[%emt 0:00:07]} 6. Be3 {[%emt 0:00:00]} b6 {[%emt 0:00:05]} 7. Qd2 {[%emt 0:02:21]} Bb7 {[%emt 0:00:17]} 8. Bd3 {[%emt 0:00:54]} c5 {[%emt 0:02:31]} 9. O-O-O {[%emt 0:00:37]} Nbd7 {[%emt 0:09:08]} 10. d5 {[%emt 0:04:19]} a6 {[%emt 0:02:25]} 11. e5 {[%emt 0:46:08]} Nxd5 {[%emt 0:11:04]} 12. Nxd5 {[%emt 0:01:17]} Bxd5 {[%emt 0:00:02]} 13. Be2 {[%emt 0:00:22]} Bc6 {[%emt 0:08:57]} 14. e6 {[%emt 0:08:09]} fxe6 {[%emt 0:07:27]} 15. Ng5 {[%emt 0:00:30]} Rf6 {[%emt 0:00:12]} 16. Nxe6 {[%emt 0:02:29]} Rxe6 {[%emt 0:04:46]} 17. Bc4 {[%emt 0:00:51]} Nf8 {[%emt 0:05:31]} 18. f5 {[%emt 0:02:15]} gxf5 {[%emt 0:01:30]} 19. Bxe6+ {[%emt 0:00:11]} Nxe6 {[%emt 0:00:07]} 20. Rde1 {[%emt 0:00:52]} Qd7 {[%emt 0:05:14]} 21. Qd3 {[%emt 0:01:35]} Be4 {[%emt 0:01:05]} 22. Qb3 {[%emt 0:00:13]} b5 {[%emt 0:03:36]} 23. Bd2 {[%emt 0:01:13]} d5 {[%emt 0:02:29]} 24. Qh3 {[%emt 0:00:22]} b4 {[%emt 0:04:02]} 25. Rhf1 {[%emt 0:01:27]} Rf8 {[%emt 0:02:49]} 26. Qh4 {[%emt 0:04:57]} Nd4 {[%emt 0:02:35]} 27. Rf3 {[%emt 0:01:32]} Qa4 {[%emt 0:02:20]} 0-1

[Event "56th Rubinstein Memorial A 2020"]
[Site "Polanica Zdroj"]
[Date "2020.08.18"]
[Round "4.3"]
[White "Cukrowski, Filip"]
[Black "Golecki, Jan"]
[Result "1/2-1/2"]
[ECO "C68"]
[WhiteElo "2419"]
[BlackElo "2106"]
[Annotator "ChessBase"]
[PlyCount "128"]
[EventDate "2020.08.15"]
[EventType "swiss"]
[EventCountry "POL"]
[SourceTitle "playchess.com"]
[Source "ChessBase"]
[SourceQuality "1"]
[TimeControl "40/5400+30:1800+30"]

1. e4 {[%emt 0:04:47]} e5 {[%emt 0:00:00]} 2. Nf3 {[%emt 0:00:13]} Nc6 {[%emt 0:00:00]} 3. Bb5 {[%emt 0:00:07]} a6 {[%emt 0:00:00]} 4. Bxc6 {[%emt 0:00:29]} dxc6 {[%emt 0:00:00]} 5. O-O {[%emt 0:00:07]} Bg4 {[%emt 0:00:06]} 6. h3 {[%emt 0:00:06]} h5 {[%emt 0:00:04]} 7. d3 {[%emt 0:00:06]} Qf6 {[%emt 0:00:06]} 8. Be3 {[%emt 0:00:05]} Bxf3 {[%emt 0:00:05]} 9. Qxf3 {[%emt 0:00:05]} Qxf3 {[%emt 0:00:04]} 10. gxf3 {[%emt 0:00:07]} Bd6 {[%emt 0:00:24]} 11. Nd2 {[%emt 0:00:09]} Ne7 {[%emt 0:03:24]} 12. Rfb1 {[%emt 0:00:17]} a5 {[%emt 0:02:53]} 13. a4 {[%emt 0:01:45]} Nc8 {[%emt 0:16:26]} 14. Nc4 {[%emt 0:01:31]} c5 {[%emt 0:08:01]} 15. Bd2 {[%emt 0:01:45]} b6 {[%emt 0:00:06]} 16. Kh2 {[%emt 0:20:11]} f6 {[%emt 0:00:25]} 17. Rg1 {[%emt 0:14:24]} Kf7 {[%emt 0:00:07]} 18. Rae1 {[%emt 0:00:07]} Be7 {[%emt 0:14:43]} 19. f4 {[%emt 0:05:05]} Nd6 {[%emt 0:00:05]} 20. fxe5 {[%emt 0:09:07]} Nxc4 {[%emt 0:00:17]} 21. dxc4 {[%emt 0:00:05]} fxe5 {[%emt 0:00:42]} 22. Bc3 {[%emt 0:00:07]} Bf6 {[%emt 0:00:14]} 23. Ref1 {[%emt 0:10:37]} g5 {[%emt 0:17:48]} 24. f3 {[%emt 0:06:40]} Rag8 {[%emt 0:02:45]} 25. Kg3 {[%emt 0:00:06]} Ke6 {[%emt 0:02:14]} 26. Rh1 {[%emt 0:02:12]} Rg6 {[%emt 0:05:19]} 27. Kf2 {[%emt 0:03:11]} Rhg8 {[%emt 0:02:20]} 28. Rfg1 {[%emt 0:00:26]} R8g7 {[%emt 0:04:44]} 29. Bd2 {[%emt 0:01:33]} g4 {[%emt 0:04:06]} 30. hxg4 {[%emt 0:00:06]} hxg4 {[%emt 0:00:03]} 31. Rxg4 {[%emt 0:00:32]} Rxg4 {[%emt 0:00:05]} 32. fxg4 {[%emt 0:00:06]} Rxg4 {[%emt 0:00:03]} 33. Kf3 {[%emt 0:00:17]} Rg7 {[%emt 0:01:25]} 34. Rh6 {[%emt 0:03:45]} Ke7 {[%emt 0:00:01]} 35. Be3 {[%emt 0:01:25]} Bg5 {[%emt 0:01:38]} 36. Rh5 {[%emt 0:00:07]} Kf6 {[%emt 0:00:01]} 37. Bxg5+ {[%emt 0:00:10]} Rxg5 {[%emt 0:00:01]} 38. Rh7 {[%emt 0:00:09]} Ke6 {[%emt 0:00:47]} 39. Rxc7 {[%emt 0:00:12]} Kd6 {[%emt 0:00:03]} 40. Rb7 {[%emt 0:00:00]} Kc6 {[%emt 0:00:00]} 41. Re7 {[%emt 0:01:28]} Kd6 {[%emt 0:00:19]} 42. Re8 {[%emt 0:00:18]} Rg1 {[%emt 0:00:34]} 43. Rd8+ {[%emt 0:00:17]} Kc6 {[%emt 0:00:37]} 44. Rd2 {[%emt 0:00:22]} Rg6 {[%emt 0:01:16]} 45. Rd5 {[%emt 0:01:10]} Rg5 {[%emt 0:00:08]} 46. b3 {[%emt 0:01:33]} Kc7 {[%emt 0:00:06]} 47. Ke3 {[%emt 0:04:00]} Rg3+ {[%emt 0:01:23]} 48. Kd2 {[%emt 0:01:19]} Rg5 {[%emt 0:00:03]} 49. Kc1 {[%emt 0:00:04]} Rh5 {[%emt 0:03:32]} 50. Kb2 {[%emt 0:00:35]} Rg5 {[%emt 0:00:36]} 51. Kc3 {[%emt 0:00:59]} Rh5 {[%emt 0:00:38]} 52. Rd3 {[%emt 0:00:24]} Rh4 {[%emt 0:00:40]} 53. Re3 {[%emt 0:00:03]} Kd6 {[%emt 0:00:14]} 54. Kd3 {[%emt 0:00:05]} Rh6 {[%emt 0:02:32]} 55. Rg3 {[%emt 0:00:09]} Ke6 {[%emt 0:01:39]} 56. Rg7 {[%emt 0:00:06]} Kd6 {[%emt 0:00:05]} 57. Rf7 {[%emt 0:01:28]} Rh3+ {[%emt 0:01:15]} 58. Ke2 {[%emt 0:00:12]} Rh2+ {[%emt 0:00:37]} 59. Rf2 {[%emt 0:00:11]} Rh6 {[%emt 0:02:51]} 60. Kf3 {[%emt 0:01:10]} Rg6 {[%emt 0:01:19]} 61. Rg2 {[%emt 0:01:19]} Rf6+ {[%emt 0:00:29]} 62. Ke3 {[%emt 0:00:14]} Rh6 {[%emt 0:01:21]} 63. Rg3 {[%emt 0:00:20]} Kc6 {[%emt 0:02:27]} 64. Kf2 {[%emt 0:00:49]} Rh2+ {[%emt 0:00:22]} 1/2-1/2

[Event "56th Rubinstein Memorial A 2020"]
[Site "Polanica Zdroj"]
[Date "2020.08.18"]
[Round "4.3"]
[White "Jedynak, January"]
[Black "Mirowska, Oliwia"]
[Result "1/2-1/2"]
[ECO "B06"]
[WhiteElo "1887"]
[BlackElo "1898"]
[Annotator "NA RC"]
[PlyCount "81"]
[EventDate "2020.08.15"]
[EventType "swiss"]
[EventCountry "POL"]
[TimeControl "40/5400+30:1800+30"]

1. e4 {[%emt 0:02:03]} d6 {[%emt 0:03:00]} 2. d4 {[%emt 0:00:39]} g6 {[%emt 0:00:06]} 3. Nc3 {[%emt 0:00:10]} Bg7 {[%emt 0:00:05]} 4. Nf3 {[%emt 0:00:17]} a6 {[%emt 0:00:12]} 5. h3 {[%emt 0:00:06]} b5 {[%emt 0:00:15]} 6. Be3 {[%emt 0:00:35]} Nd7 {[%emt 0:01:33]} 7. a4 {[%emt 0:21:07]} b4 {[%emt 0:01:31]} 8. Bc4 {[%emt 0:01:39]} e6 {[%emt 0:01:39]} 9. Ne2 {[%emt 0:00:52]} Ne7 {[%emt 0:11:38]} 10. Qd2 {[%emt 0:01:48]} Rb8 {[%emt 0:12:21]} 11. Bh6 {[%emt 0:08:39]} Bf6 {[%emt 0:08:28]} 12. Rd1 {[%emt 0:12:56]} Nc6 {[%emt 0:18:41]} 13. O-O {[%emt 0:28:12]} Rg8 {[%emt 0:17:13]} 14. Qf4 {[%emt 0:07:41]} g5 {[%emt 0:02:34]} 15. Qg4 {[%emt 0:00:12]} Rg6 {[%emt 0:01:22]} 16. Qh5 {[%emt 0:00:05]} Qe7 {[%emt 0:03:04]} 17. Ng3 {[%emt 0:01:48]} Na5 {[%emt 0:09:18]} 18. Bd3 {[%emt 0:01:11]} e5 {[%emt 0:00:58]} 19. Nf5 {[%emt 0:00:19]} Qd8 {[%emt 0:00:01]} 20. dxe5 {[%emt 0:00:56]} Nxe5 {[%emt 0:00:27]} 21. Nxe5 {[%emt 0:00:25]} Bxe5 {[%emt 0:00:07]} 22. f4 {[%emt 0:01:14]} gxf4 {[%emt 0:01:11]} 23. Bxf4 {[%emt 0:00:11]} Bxf4 {[%emt 0:00:23]} 24. Rxf4 {[%emt 0:00:15]} Qg5 {[%emt 0:00:23]} 25. Qf3 {[%emt 0:02:22]} Nc6 {[%emt 0:00:58]} 26. h4 {[%emt 0:00:52]} Qd8 {[%emt 0:00:11]} 27. Qh5 {[%emt 0:00:44]} Ne5 {[%emt 0:01:07]} 28. Qxh7 {[%emt 0:00:30]} Kd7 {[%emt 0:02:23]} 29. h5 {[%emt 0:01:11]} Rxg2+ {[%emt 0:01:05]} 30. Kxg2 {[%emt 0:01:52]} Qg5+ {[%emt 0:00:01]} 31. Ng3 {[%emt 0:00:21]} Qxf4 {[%emt 0:00:08]} 32. Rf1 {[%emt 0:00:16]} Qg4 {[%emt 0:01:00]} 33. h6 {[%emt 0:02:02]} Kc6 {[%emt 0:00:13]} 34. Qg7 {[%emt 0:00:46]} Qh3+ {[%emt 0:00:39]} 35. Kf2 {[%emt 0:01:44]} Ng4+ {[%emt 0:01:00]} 36. Kf3 {[%emt 0:00:59]} Ne5+ {[%emt 0:01:23]} 37. Kf2 {[%emt 0:00:34]} Ng4+ {[%emt 0:00:25]} 38. Ke2 {[%emt 0:00:51]} Qxg3 {[%emt 0:00:11]} 39. h7 {[%emt 0:00:15]} Qg2+ {[%emt 0:01:34]} 40. Ke1 {[%emt 0:00:00]} Qg3+ {[%emt 0:00:00]} 41. Ke2 {[%emt 0:07:37]} 1/2-1/2

[Event "56th Rubinstein Memorial A 2020"]
[Site "Polanica Zdroj"]
[Date "2020.08.18"]
[Round "4.4"]
[White "Goluch, Piotr"]
[Black "Butkiewicz, Lukasz"]
[Result "1/2-1/2"]
[ECO "E04"]
[WhiteElo "2376"]
[BlackElo "2400"]
[Annotator "ChessBase"]
[PlyCount "83"]
[EventDate "2020.08.15"]
[EventType "swiss"]
[EventCountry "POL"]
[SourceTitle "playchess.com"]
[Source "ChessBase"]
[SourceQuality "1"]
[TimeControl "40/5400+30:1800+30"]

1. d4 {[%emt 0:00:00]} Nf6 {[%emt 0:00:00]} 2. c4 {[%emt 0:00:00]} e6 {[%emt 0:00:00]} 3. Nf3 {[%emt 0:00:00]} d5 {[%emt 0:00:00]} 4. g3 {[%emt 0:00:04]} dxc4 {[%emt 0:00:03]} 5. Bg2 {[%emt 0:00:05]} Bb4+ {[%emt 0:00:06]} 6. Bd2 {[%emt 0:00:04]} a5 {[%emt 0:00:12]} 7. O-O {[%emt 0:02:38]} O-O {[%emt 0:02:41]} 8. Bg5 {[%emt 0:07:37]} b5 {[%emt 0:06:30]} 9. a4 {[%emt 0:06:34]} c6 {[%emt 0:03:30]} 10. Ne5 {[%emt 0:01:53]} Ra6 {[%emt 0:02:14]} 11. Nc3 {[%emt 0:00:18]} Rb6 {[%emt 0:14:16]} 12. e4 {[%emt 0:23:48]} Be7 {[%emt 0:08:13]} 13. Be3 {[%emt 0:09:30]} b4 {[%emt 0:07:42]} 14. Ne2 {[%emt 0:00:26]} Ba6 {[%emt 0:00:07]} 15. Re1 {[%emt 0:10:04]} Nfd7 {[%emt 0:02:52]} 16. f4 {[%emt 0:03:27]} Nxe5 {[%emt 0:02:09]} 17. fxe5 {[%emt 0:00:32]} Nd7 {[%emt 0:02:16]} 18. d5 {[%emt 0:10:17]} cxd5 {[%emt 0:05:18]} 19. exd5 {[%emt 0:00:01]} Nxe5 {[%emt 0:03:57]} 20. Nf4 {[%emt 0:05:13]} Rd6 {[%emt 0:06:21]} 21. Qh5 {[%emt 0:00:02]} Nd3 {[%emt 0:07:17]} 22. Be4 {[%emt 0:03:36]} f5 {[%emt 0:00:58]} 23. Bxd3 {[%emt 0:01:39]} cxd3 {[%emt 0:00:07]} 24. Bc5 {[%emt 0:00:53]} Rxd5 {[%emt 0:03:43]} 25. Bxe7 {[%emt 0:01:27]} Qxe7 {[%emt 0:00:04]} 26. Nxd5 {[%emt 0:04:34]} Qc5+ {[%emt 0:00:08]} 27. Re3 {[%emt 0:00:11]} Qxd5 {[%emt 0:01:28]} 28. Qf3 {[%emt 0:00:07]} Qxf3 {[%emt 0:02:09]} 29. Rxf3 {[%emt 0:00:02]} Rc8 {[%emt 0:00:25]} 30. Rf2 {[%emt 0:00:10]} e5 {[%emt 0:02:35]} 31. Rd2 {[%emt 0:00:23]} Kf7 {[%emt 0:00:41]} 32. Kf2 {[%emt 0:00:05]} Ke6 {[%emt 0:00:09]} 33. Ke3 {[%emt 0:00:05]} g5 {[%emt 0:00:39]} 34. h4 {[%emt 0:01:38]} gxh4 {[%emt 0:01:11]} 35. Rh1 {[%emt 0:00:02]} hxg3 {[%emt 0:01:15]} 36. Rh6+ {[%emt 0:00:06]} Kd5 {[%emt 0:08:38]} 37. Rxa6 {[%emt 0:05:16]} e4 {[%emt 0:00:07]} 38. Rxa5+ {[%emt 0:00:28]} Ke6 {[%emt 0:00:13]} 39. Ra6+ {[%emt 0:01:25]} Ke5 {[%emt 0:00:18]} 40. Ra5+ {[%emt 0:00:00]} Ke6 {[%emt 0:00:00]} 41. Ra6+ {[%emt 0:04:43]} Ke5 {[%emt 0:00:11]} 42. Ra5+ {[%emt 0:00:04]} 1/2-1/2

[Event "56th Rubinstein Memorial A 2020"]
[Site "Polanica Zdroj"]
[Date "2020.08.18"]
[Round "4.4"]
[White "Dytman, Radoslaw"]
[Black "Kowalczyk, Wojciech"]
[Result "1/2-1/2"]
[ECO "B24"]
[WhiteElo "1867"]
[BlackElo "1873"]
[Annotator "NA RC"]
[PlyCount "81"]
[EventDate "2020.08.15"]
[EventType "swiss"]
[EventCountry "POL"]
[TimeControl "40/5400+30:1800+30"]

1. e4 {[%emt 0:00:00]} c5 {[%emt 0:00:00]} 2. Nc3 {[%emt 0:00:00]} Nc6 {[%emt 0:00:00]} 3. g3 {[%emt 0:00:14]} g6 {[%emt 0:00:51]} 4. Bg2 {[%emt 0:00:09]} Bg7 {[%emt 0:00:10]} 5. d3 {[%emt 0:00:08]} e6 {[%emt 0:03:31]} 6. Be3 {[%emt 0:00:48]} d6 {[%emt 0:00:29]} 7. Qd2 {[%emt 0:00:44]} Rb8 {[%emt 0:00:57]} 8. Nge2 {[%emt 0:01:16]} b5 {[%emt 0:01:42]} 9. O-O {[%emt 0:02:47]} b4 {[%emt 0:01:41]} 10. Nd1 {[%emt 0:00:20]} Nd4 {[%emt 0:07:44]} 11. Nc1 {[%emt 0:03:03]} Ne7 {[%emt 0:01:33]} 12. c3 {[%emt 0:00:35]} Ndc6 {[%emt 0:04:02]} 13. Bh6 {[%emt 0:01:06]} O-O {[%emt 0:03:05]} 14. Bxg7 {[%emt 0:00:09]} Kxg7 {[%emt 0:00:04]} 15. Ne3 {[%emt 0:01:50]} Qb6 {[%emt 0:12:40]} 16. f4 {[%emt 0:15:44]} f5 {[%emt 0:15:25]} 17. Ne2 {[%emt 0:08:14]} Ba6 {[%emt 0:08:42]} 18. c4 {[%emt 0:11:11]} Bb7 {[%emt 0:06:37]} 19. b3 {[%emt 0:03:37]} Nd4 {[%emt 0:13:42]} 20. Nc2 {[%emt 0:09:20]} Nec6 {[%emt 0:02:45]} 21. Ncxd4 {[%emt 0:03:25]} Nxd4 {[%emt 0:00:40]} 22. Nxd4 {[%emt 0:00:54]} cxd4 {[%emt 0:00:05]} 23. Rfe1 {[%emt 0:06:39]} Rfe8 {[%emt 0:06:39]} 24. e5 {[%emt 0:01:17]} d5 {[%emt 0:05:29]} 25. Rac1 {[%emt 0:14:50]} Rbc8 {[%emt 0:01:42]} 26. Rc2 {[%emt 0:00:04]} dxc4 {[%emt 0:00:16]} 27. Rxc4 {[%emt 0:00:16]} Rxc4 {[%emt 0:00:23]} 28. dxc4 {[%emt 0:00:37]} Bxg2 {[%emt 0:00:56]} 29. Qxg2 {[%emt 0:00:16]} Rd8 {[%emt 0:01:40]} 30. Rd1 {[%emt 0:00:15]} a5 {[%emt 0:00:33]} 31. Rd3 {[%emt 0:00:18]} Kf7 {[%emt 0:00:31]} 32. Qh3 {[%emt 0:00:16]} Kg7 {[%emt 0:00:51]} 33. Qh4 {[%emt 0:00:06]} Rd7 {[%emt 0:00:27]} 34. Qh3 {[%emt 0:08:20]} h5 {[%emt 0:00:31]} 35. Qg2 {[%emt 0:00:59]} a4 {[%emt 0:00:17]} 36. bxa4 {[%emt 0:06:36]} Qc5 {[%emt 0:00:15]} 37. Qc2 {[%emt 0:00:47]} Rc7 {[%emt 0:00:31]} 38. a5 {[%emt 0:01:08]} Qxa5 {[%emt 0:00:42]} 39. Rxd4 {[%emt 0:00:26]} Ra7 {[%emt 0:00:43]} 40. Rd2 Qc5+ {[%emt 0:00:00]} 41. Kg2 {[%emt 0:06:11]} 1/2-1/2

[Event "56th Rubinstein Memorial A 2020"]
[Site "Polanica Zdroj"]
[Date "2020.08.18"]
[Round "4.5"]
[White "Kucza, Karol"]
[Black "Luch, Michal"]
[Result "1/2-1/2"]
[ECO "B38"]
[WhiteElo "2245"]
[BlackElo "2409"]
[Annotator "ChessBase"]
[PlyCount "77"]
[EventDate "2020.08.15"]
[EventType "swiss"]
[EventCountry "POL"]
[SourceTitle "playchess.com"]
[Source "ChessBase"]
[SourceQuality "1"]
[TimeControl "40/5400+30:1800+30"]

1. e4 {[%emt 0:00:00]} c5 {[%emt 0:00:00]} 2. Nf3 {[%emt 0:00:00]} Nc6 {[%emt 0:00:00]} 3. d4 {[%emt 0:00:00]} cxd4 {[%emt 0:00:00]} 4. Nxd4 {[%emt 0:00:00]} g6 {[%emt 0:00:00]} 5. c4 {[%emt 0:01:28]} Bg7 {[%emt 0:00:00]} 6. Be3 {[%emt 0:00:08]} Nf6 {[%emt 0:00:18]} 7. Nc3 {[%emt 0:00:05]} d6 {[%emt 0:00:29]} 8. Be2 {[%emt 0:00:24]} O-O {[%emt 0:00:25]} 9. Qd2 {[%emt 0:01:57]} Bd7 {[%emt 0:03:11]} 10. Rc1 {[%emt 0:00:29]} Nxd4 {[%emt 0:00:33]} 11. Bxd4 {[%emt 0:00:06]} Bc6 {[%emt 0:00:06]} 12. f3 {[%emt 0:00:53]} a5 {[%emt 0:00:55]} 13. b3 {[%emt 0:00:35]} Nd7 {[%emt 0:00:13]} 14. Be3 {[%emt 0:00:06]} Nc5 {[%emt 0:00:16]} 15. O-O {[%emt 0:00:24]} e6 {[%emt 0:00:13]} 16. Bd1 {[%emt 0:18:43]} Be5 {[%emt 0:02:49]} 17. a3 {[%emt 0:00:12]} a4 {[%emt 0:24:58]} 18. Nxa4 {[%emt 0:09:31]} Nxa4 {[%emt 0:04:21]} 19. bxa4 {[%emt 0:00:06]} Bxa4 {[%emt 0:00:05]} 20. f4 {[%emt 0:02:55]} Bf6 {[%emt 0:04:14]} 21. c5 {[%emt 0:05:09]} dxc5 {[%emt 0:01:52]} 22. Qxd8 {[%emt 0:00:36]} Rfxd8 {[%emt 0:00:54]} 23. Bxc5 {[%emt 0:02:18]} Bd4+ {[%emt 0:23:22]} 24. Bxd4 {[%emt 0:00:14]} Rxd4 {[%emt 0:00:04]} 25. Bxa4 {[%emt 0:01:27]} Raxa4 {[%emt 0:08:51]} 26. f5 {[%emt 0:02:16]} exf5 {[%emt 0:08:31]} 27. exf5 {[%emt 0:00:14]} gxf5 {[%emt 0:00:07]} 28. Rc7 {[%emt 0:06:28]} Rxa3 {[%emt 0:03:47]} 29. Rxb7 {[%emt 0:01:31]} Rd2 {[%emt 0:01:32]} 30. Rxf5 {[%emt 0:02:58]} Ra1+ {[%emt 0:00:31]} 31. Rf1 {[%emt 0:00:04]} Raa2 {[%emt 0:00:28]} 32. Rfxf7 {[%emt 0:00:16]} Rxg2+ {[%emt 0:00:12]} 33. Kf1 {[%emt 0:00:03]} Rxh2 {[%emt 0:00:17]} 34. Rg7+ {[%emt 0:00:10]} Kh8 {[%emt 0:00:11]} 35. Kg1 {[%emt 0:00:03]} Rab2 {[%emt 0:06:13]} 36. Rxh7+ {[%emt 0:00:15]} Rxh7 {[%emt 0:00:04]} 37. Rxb2 {[%emt 0:00:06]} Rg7+ {[%emt 0:00:01]} 38. Rg2 {[%emt 0:00:07]} Rxg2+ {[%emt 0:00:03]} 39. Kxg2 1/2-1/2

[Event "56th Rubinstein Memorial A 2020"]
[Site "Polanica Zdroj"]
[Date "2020.08.18"]
[Round "4.6"]
[White "Luba, Lukasz"]
[Black "Sabuk, Piotr"]
[Result "0-1"]
[ECO "A00"]
[WhiteElo "2188"]
[BlackElo "2377"]
[Annotator "ChessBase"]
[PlyCount "68"]
[EventDate "2020.08.15"]
[EventType "swiss"]
[EventCountry "POL"]
[SourceTitle "playchess.com"]
[Source "ChessBase"]
[SourceQuality "1"]
[TimeControl "40/5400+30:1800+30"]

1. e3 {[%emt 0:00:00]} e5 {[%emt 0:00:39]} 2. c4 {[%emt 0:00:38]} Nf6 {[%emt 0:01:02]} 3. b3 {[%emt 0:01:20]} d5 {[%emt 0:03:15]} 4. Bb2 {[%emt 0:09:05]} d4 {[%emt 0:01:16]} 5. e4 {[%emt 0:03:00]} Nc6 {[%emt 0:04:58]} 6. d3 {[%emt 0:06:12]} Bd6 {[%emt 0:03:58]} 7. Be2 {[%emt 0:02:13]} O-O {[%emt 0:05:32]} 8. Nd2 {[%emt 0:00:27]} Nd7 {[%emt 0:01:41]} 9. g4 {[%emt 0:00:08]} Nc5 {[%emt 0:06:19]} 10. a3 {[%emt 0:08:50]} a5 {[%emt 0:07:19]} 11. Nf1 {[%emt 0:05:47]} Ra6 {[%emt 0:02:44]} 12. Bc1 {[%emt 0:00:11]} Rb6 {[%emt 0:08:04]} 13. Rb1 {[%emt 0:12:35]} Qe7 {[%emt 0:02:12]} 14. Qc2 {[%emt 0:03:23]} Ne6 {[%emt 0:08:39]} 15. Ra1 {[%emt 0:00:08]} g6 {[%emt 0:13:58]} 16. Ng3 {[%emt 0:08:11]} Nf4 {[%emt 0:03:09]} 17. Bf3 {[%emt 0:00:23]} a4 {[%emt 0:08:00]} 18. bxa4 {[%emt 0:11:29]} Bd7 {[%emt 0:00:59]} 19. N1e2 {[%emt 0:05:36]} Na5 {[%emt 0:03:52]} 20. c5 {[%emt 0:06:27]} Bxc5 {[%emt 0:00:55]} 21. Bxf4 {[%emt 0:04:46]} exf4 {[%emt 0:00:08]} 22. Nxf4 {[%emt 0:00:05]} c6 {[%emt 0:01:16]} 23. O-O {[%emt 0:03:24]} Bd6 {[%emt 0:03:38]} 24. Nfe2 {[%emt 0:01:06]} c5 {[%emt 0:00:22]} 25. Rfb1 {[%emt 0:00:30]} Ra6 {[%emt 0:01:42]} 26. Re1 {[%emt 0:02:19]} Nc6 {[%emt 0:00:29]} 27. Rab1 {[%emt 0:00:21]} Ne5 {[%emt 0:00:27]} 28. Bg2 {[%emt 0:00:35]} c4 {[%emt 0:01:26]} 29. Nxd4 {[%emt 0:01:29]} cxd3 {[%emt 0:00:33]} 30. Qd2 {[%emt 0:00:36]} Rxa4 {[%emt 0:01:08]} 31. Nb3 {[%emt 0:01:14]} Rxa3 {[%emt 0:00:50]} 32. f4 {[%emt 0:00:53]} Bb4 {[%emt 0:00:26]} 33. Qd1 {[%emt 0:01:10]} Bxg4 {[%emt 0:00:34]} 34. Qc1 {[%emt 0:00:37]} Rxb3 0-1

[Event "56th Rubinstein Memorial A 2020"]
[Site "Polanica Zdroj"]
[Date "2020.08.18"]
[Round "4.7"]
[White "Marszalek, Maciej"]
[Black "Fiedorek, Michal"]
[Result "1/2-1/2"]
[ECO "A49"]
[WhiteElo "2315"]
[BlackElo "2212"]
[Annotator "ChessBase"]
[PlyCount "42"]
[EventDate "2020.08.15"]
[EventType "swiss"]
[EventCountry "POL"]
[SourceTitle "playchess.com"]
[Source "ChessBase"]
[SourceQuality "1"]
[TimeControl "40/5400+30:1800+30"]

1. d4 {[%emt 0:00:00]} Nf6 {[%emt 0:00:00]} 2. Nf3 {[%emt 0:00:00]} g6 {[%emt 0:00:00]} 3. g3 {[%emt 0:00:00]} Bg7 {[%emt 0:00:00]} 4. Bg2 {[%emt 0:00:00]} O-O {[%emt 0:00:17]} 5. O-O {[%emt 0:00:00]} d6 {[%emt 0:00:13]} 6. b3 {[%emt 0:00:06]} b5 {[%emt 0:05:15]} 7. Bb2 {[%emt 0:03:14]} Bb7 {[%emt 0:00:19]} 8. Nbd2 {[%emt 0:00:21]} Nbd7 {[%emt 0:00:53]} 9. c4 {[%emt 0:02:59]} bxc4 {[%emt 0:00:56]} 10. Nxc4 {[%emt 0:00:27]} a5 {[%emt 0:01:06]} 11. Rc1 {[%emt 0:02:43]} c5 {[%emt 0:01:00]} 12. dxc5 {[%emt 0:01:30]} Nxc5 {[%emt 0:01:13]} 13. Bd4 {[%emt 0:00:30]} Ncd7 {[%emt 0:23:38]} 14. Bc3 {[%emt 0:10:25]} Ra6 {[%emt 0:09:34]} 15. a4 {[%emt 0:18:40]} Qa8 {[%emt 0:01:51]} 16. Na3 {[%emt 0:00:22]} Rc8 {[%emt 0:02:36]} 17. Bxf6 {[%emt 0:02:17]} Rxc1 {[%emt 0:08:18]} 18. Qxc1 {[%emt 0:01:29]} Bxf6 {[%emt 0:00:18]} 19. Nb5 {[%emt 0:04:03]} Rc6 {[%emt 0:08:00]} 20. Qd2 {[%emt 0:02:49]} Rc5 {[%emt 0:02:06]} 21. Rb1 {[%emt 0:01:47]} Be4 1/2-1/2